Cogmind - Beta 15 @@@ ROGUE MODE // 2025.06.30 @ 20:43:09 Player: BlobtheGreat Result: Destroyed by S8-8UN(R) with Subdweller Machine Gun Performance ------------- Evolutions (0) 0 Regions Visited (2) 400 Robots Destroyed (20) 100 Value Destroyed (460) 460 Prototype IDs (2) 40 Alien Tech Used (0) 0 Bonus (0) 0 TOTAL SCORE: 1000 Bonus ------- None Cogmind --------- Core Integrity 0/250 Matter 276/300 Energy 198/200 System Corruption 0% Temperature Cool (0) Movement Treading (320) Ox2 Location -10/Subcaves Parts ------- > --- POWER (1) -------- Subdweller Power Source > --- PROPULSION (2) --- Light Treads Compact Wheel > --- UTILITY (2) ------ High-capacity Storage Unit Light Armor Plating > --- WEAPON (2) ------- Heavy Assault Rifle Heavy Assault Rifle > --- INVENTORY (20) --- Subdweller Power Source Aluminum Leg Wheel Subdweller Monowheel Subdweller Monowheel Small Storage Unit Large Matter Pod (150) Structural Scanner Seismic Detector Makeshift Kinetic Plating Medium Laser Light Assault Rifle Light Assault Rifle Heavy Assault Rifle Heavy Assault Rifle Shotgun Shotgun Shotgun Shotgun Grenade Launcher Peak State ------------ > --- POWER ------------ Subdweller Power Source > --- PROPULSION ------- Light Treads Compact Wheel > --- UTILITY ---------- High-capacity Storage Unit Light Armor Plating > --- WEAPON ----------- Heavy Assault Rifle Heavy Assault Rifle > --- INVENTORY -------- Ion Engine Subdweller Power Source Aluminum Leg Wheel Subdweller Monowheel Small Storage Unit Large Matter Pod Structural Scanner Seismic Detector Makeshift Kinetic Plating Medium Laser Light Assault Rifle Light Assault Rifle Heavy Assault Rifle Heavy Assault Rifle Shotgun Shotgun Shotgun Shotgun Grenade Launcher [Rating: 13] Favorites ----------- Power Light Ion Engine Engine Light Ion Engine Propulsion Light Treads Treads Light Treads Wheel Compact Wheel Utility High-capacity Storage Unit Device Seismic Detector Storage High-capacity Storage Unit Protection Light Armor Plating Weapon Light Assault Rifle Ballistic Gun Light Assault Rifle Launcher Grenade Launcher Build | -11 -10 -10 ------- Run | Yrd Mat Sub Slots Evolved . | . . . Power . | . . . Propulsion . | . . . Utility . | . . . Weapon . | . . . Parts Attached 18 | 7 4 7 Power 3 | 1 1 1 Engine 3 | 1 1 1 Core . | . . . Reactor . | . . . Propulsion 4 | 2 . 2 Treads 3 | 2 . 1 Leg . | . . . Wheel 1 | . . 1 Hover . | . . . Flight . | . . . Utility 6 | 2 3 1 Device 2 | 1 1 . Storage 2 | 1 1 . Processor . | . . . Hackware . | . . . Protection 2 | . 1 1 Artifact . | . . . Weapon 5 | 2 . 3 Energy Gun . | . . . Energy Cannon . | . . . Ballistic Gun 4 | 2 . 2 Ballistic Cannon . | . . . Launcher 1 | . . 1 Special Weapon . | . . . Impact Weapon . | . . . Slashing Weapon . | . . . Piercing Weapon . | . . . Special Melee Weapon . | . . . Unidentified Prototypes . | . . . Parts Lost 5 | . 2 3 Power 1 | . 1 . Propulsion 2 | . . 2 Utility 2 | . 1 1 Weapon . | . . . Highest Loss Streak 3 | . 1 3 To Critical Strikes . | . . . Average Backups 14 | 4 13 19 Power . | . . . Propulsion 3 | 3 4 3 Utility 3 | . 3 5 Weapon 6 | . 4 10 Tool/Special . | . . . Unused Backups 16 | . 1 15 Power 1 | . . 1 Propulsion 5 | . 1 4 Utility 3 | . . 3 Weapon 7 | . . 7 Tool/Special . | . . . Average Slot Usage (%) 99 | . 99 99 Engine 13 | . 13 14 Treads 26 | . 28 24 Device 5 | . 8 . Storage 14 | . 14 14 Protection 7 | . 4 13 Ballistic Gun 27 | . 28 27 Peak Build Rating 13 | 7 9 13 Average Rating 8 | 5 8 10 On Entrance 5 | . 7 9 Naked Turns . | . . . Heaviest Build 54 | 11 50 54 Greatest Support 40 | 40 40 40 Greatest Overweight (x) 3 | . 1 3 Average Overweight (x) . | . . 1 Largest Inventory Capacity 20 | 8 20 20 Average Capacity 16 | 7 16 20 Most Carried 20 | 7 19 20 Average Carried 14 | 4 13 19 Final Capacity 20 | 8 20 20 Final Carried 20 | 7 19 20 Class Distribution -------------------- 100% | Mutant Dominant Class ---------------- Mutant | -10/Materials Mutant | -10/Subcaves Resources | -11 -10 -10 ----------- Run | Yrd Mat Sub Matter Collected 730 | 298 190 242 Remotely . | . . . Salvage Created 669 | 127 357 185 Parts 45 | 8 25 12 Haulers Intercepted . | . . . Recyclers Shooed . | . . . Parts Field Recycled . | . . . Retrieved Matter . | . . . Parts Self-Destructed 9 | . . 9 Prevented . | . . . Kills | -11 -10 -10 ------- Run | Yrd Mat Sub Combat Hostiles Destroyed 16 | . 12 4 Guns 16 | . 12 4 Classes Destroyed 6 | 2 3 1 Tunneler 2 | 2 . . Recycler 1 | 1 . . Watcher 1 | . 1 . Swarmer 6 | . 6 . Grunt 6 | . 6 . Subdweller 4 | . . 4 Best Kill Streak 6 | 2 6 3 Combat Bots Only 6 | . 6 3 Max Kills in Single Turn 1 | 1 1 1 Gunslinging . | . . . Exploded . | . . . Melee . | . . . Uniques/NPCs Destroyed . | . . . Combat | -11 -10 -10 -------- Run | Yrd Mat Sub Hostile Shots Fired 100 | . 64 36 Missed 24 | . 15 9 Hits 76 | . 49 27 Projectile 76 | . 49 27 Damage Taken 1143 | . 478 665 Core 251 | . 64 187 Absorbed by Shields . | . . . Core Remaining (%) 100 | 100 . . Volleys Fired 90 | 14 58 18 Largest 2 | 2 2 2 Hottest 46 | 40 40 46 Shots Fired 180 | 28 116 36 Gun 180 | 28 116 36 Cannon . | . . . Launcher . | . . . Special . | . . . Kinetic 180 | 28 116 36 Thermal . | . . . Explosive . | . . . Electromagnetic . | . . . Robot Hit Streak 9 | 9 7 8 Robot Miss Streak 4 | 1 4 1 Penetration Max . | . . . Secondary Targets 1 | . 1 . Max Gunslinging Chain 1 | . 1 . Shots Hit Robots 125 | 21 73 31 Core Hits 39 | 6 24 9 Critical Kills . | . . . Critical Parts Destroyed 1 | 1 . . Critical Strikes 1 | 1 . . Destroy 1 | 1 . . Melee Attacks . | . . . Impact . | . . . Slashing . | . . . Piercing . | . . . Sneak Attacks . | . . . Combat Hostiles . | . . . Follow-up Attacks . | . . . Damage Inflicted 1125 | 185 586 354 Guns 1118 | 185 579 354 Cannons . | . . . Explosions . | . . . Melee . | . . . Ramming 7 | . 7 . Kinetic 1118 | 185 579 354 Thermal . | . . . Explosive . | . . . Electromagnetic . | . . . Impact . | . . . Slashing . | . . . Piercing . | . . . Highest Corruption . | . . . Average Corruption . | . . . Corruption Purged . | . . . Corruption Blocked . | . . . Overload Shots . | . . . Overflow Damage . | . . . Projectiles . | . . . Explosions . | . . . Melee . | . . . Knockbacks 1 | . 1 . Impact 1 | . 1 . Kinetic . | . . . Secondary . | . . . Self-Inflicted Damage . | . . . Shots . | . . . Rammed 1 | . 1 . Targets Rammed 1 | . 1 . Kicked . | . . . Crushed . | . . . Highest Temperature 24 | . 24 . Average Temperature 8 | . 8 . Received Heat Transfer 351 | . 168 183 Siege Activations . | . . . Martial Activations . | . . . Shielding Activations . | . . . Robots Disrupted . | . . . Combat Hostiles . | . . . Robots Corrupted . | . . . Combat Hostiles . | . . . Parts Fried . | . . . Impact Corruptions . | . . . Robots Melted . | . . . Combat Hostiles . | . . . Parts Melted 1 | . . 1 Heat Transferred . | . . . Parts Sabotaged . | . . . Parts Stolen . | . . . Parts Stripped . | . . . Power Chain Reactions . | . . . Alert | -11 -10 -10 ------- Run | Yrd Mat Sub Maximum Alert Level . | . . . Low Security (%) 100 | 100 100 . Level 1 . | . . . Level 2 . | . . . Level 3 . | . . . Level 4 . | . . . Level 5 . | . . . High Security . | . . . Max Security . | . . . Peak Influence 110 | 10 110 . Initial . | . . . Average 21 | . 24 . Influence Increases 379 | 15 364 . Destroy 0b10 Robot/C 240 | . 240 . Destroy 0b10 Robot/NC 20 | 15 5 . Destroy Leader 42 | . 42 . Successful Hack 47 | . 47 . Partial Spotted 15 | . 15 . Lose Combat Pursuer 15 | . 15 . Influence Decreases 379 | 15 364 . Time Decay 295 | 15 280 . Lost Part 20 | . 20 . Purge Threat 64 | . 64 . Squads Dispatched 3 | . 3 . Investigation 3 | . 3 . Extermination . | . . . Reinforcement . | . . . Assault . | . . . Garrison . | . . . Intercept . | . . . Searches Triggered . | . . . Construction Impeded . | . . . Haulers Reinforced . | . . . Active Scanning Responses . | . . . Cargo Convoy Interrupts . | . . . Stealth | -11 -10 -10 --------- Run | Yrd Mat Sub Distress Signals . | . . . Communications Jammed . | . . . Distress Signals . | . . . Times Spotted 24 | . 19 5 Peak Tracking Total 3 | . 3 3 Tactical Retreats 1 | . 1 . Traps | -11 -10 -10 ------- Run | Yrd Mat Sub Traps Triggered 1 | . 1 . Indirectly . | . . . Trap Hack Attempts . | . . . Triggered . | . . . Disarmed . | . . . Reprogrammed . | . . . Reused . | . . . Traps Extracted . | . . . Installed . | . . . Triggered . | . . . Machines | -11 -10 -10 ---------- Run | Yrd Mat Sub Machines Disabled . | . . . Max in Single Turn . | . . . Machines Repaired . | . . . Machines Dismantled . | . . . Machines Sabotaged . | . . . Overloaded Fab Kills . | . . . Hacking | -11 -10 -10 --------- Run | Yrd Mat Sub Machines Accessed 11 | . 9 2 Terminals 8 | . 8 . Fabricators . | . . . Repair Stations . | . . . Recycling Units 1 | . 1 . Scanalyzers . | . . . Garrison Access . | . . . Total Hacks 37 | . 34 3 Successful 13 | . 10 3 Failed 23 | . 23 . Catastrophic 2 | . 2 . Database Lockouts 1 | . 1 . Manual 14 | . 14 . Terminals 32 | . 32 . Fabricators . | . . . Repair Stations . | . . . Recycling Units 2 | . 2 . Scanalyzers . | . . . Garrison Access . | . . . Terminal Hacks 11 | . 8 3 Record 1 | . . 1 Robot Analysis 1 | . 1 . Prototype ID Bank 1 | . 1 . Open Door 1 | . . 1 Unreport Threat 1 | . 1 . Locate Traps 1 | . 1 . Recall Investigation 2 | . 2 . Hauler Manifests 1 | . 1 . Registered Prototypes 1 | . 1 . Release Object 1 | . . 1 Fabricator Hacks . | . . . Repair Station Hacks . | . . . Recycling Unit Hacks . | . . . Scanalyzer . | . . . Garrison Access Hacks . | . . . Unauthorized Hacks 2 | . 2 . Terminals 2 | . 2 . Botnet 1 | . 1 . Operators 1 | . 1 . Fabricators . | . . . Repair Stations . | . . . Recycling Units . | . . . Scanalyzers . | . . . Garrison Access . | . . . Data Cores Recovered . | . . . Used . | . . . Hacking Detections 9 | . 9 . Full Trace Events 3 | . 3 . Feedback Events . | . . . Feedback Blocked . | . . . Robot Schematics Acquired . | . . . Robots Built . | . . . Authchips . | . . . Time . | . . . Total Robot Build Rating . | . . . Part Schematics Acquired . | . . . Parts Built . | . . . Authchips . | . . . Time . | . . . Total Part Build Rating . | . . . Parts Repaired . | . . . Time . | . . . Parts Recycled . | . . . Recycled Matter . | . . . Retrieved Matter . | . . . Retrieved Components . | . . . Parts Scanalyzed . | . . . Part Schematics Acquired . | . . . Parts Damaged . | . . . Bothacking | -11 -10 -10 ------------ Run | Yrd Mat Sub Used RIF Installer . | . . . Robots Hacked . | . . . Non-combat . | . . . Combat . | . . . Robot Hacks Applied . | . . . Relay Couplers Released . | . . . Fabnet Peak Effective % . | . . . Robots Rewired . | . . . Allies Hacked . | . . . Hacks Repelled . | . . . Allies | -11 -10 -10 -------- Run | Yrd Mat Sub Total Allies . | . . . Largest Group . | . . . Highest-Rated Group . | . . . Highest-Rated Ally . | . . . Total Orders . | . . . Ally Attacks . | . . . Total Damage . | . . . Kills . | . . . Allies Corrupted . | . . . Allies Melted . | . . . Intel | -11 -10 -10 ------- Run | Yrd Mat Sub Active Infowar (turns) 874 | 64 810 . Seismic 874 | 64 810 . Robot Analysis Total 1 | . 1 . Derelict Logs Recovered . | . . . Drone Launches . | . . . Drone Recoveries . | . . . Exploration | -11 -10 -10 ------------- Run | Yrd Mat Sub Turns Passed 2085 | 148 1360 577 Spaces Moved 828 | 62 531 235 Core 4 | 4 . . Treads 760 | 58 531 171 Legs . | . . . Wheels 64 | . . 64 Hover . | . . . Flight . | . . . Fastest Speed 50 | 50 160 145 Average Speed 209 | 152 214 214 Slowest Speed 320 | 160 240 320 Overloaded Moves . | . . . Propulsion Burnouts . | . . . Robots Hopped . | . . . Potential Cave-ins . | . . . Cave-ins Triggered . | . . . Exploration Rate (%) 33 | 5 86 10 Regions Visited 2 Branch Regions 1 Pre-discovered Areas . | . . . Known Exits Taken . | . . . Unknown Exits Taken 2 | 1 1 . Scrap Searched 1 | . . 1 Spaces Dug . | . . . Terrain Destroyed . | . . . Melee . | . . . Projectile . | . . . AOE . | . . . Terrain Rammed . | . . . Walls Destroyed . | . . . Machines Disabled . | . . . Actions | -11 -10 -10 --------- Run | Yrd Mat Sub Total 1020 | 89 658 273 Wait 57 | . 50 7 Move 826 | 61 530 235 Hop . | . . . Pick Up 25 | 7 14 4 Fast Attach 8 | 7 1 . Attach 4 | . 1 3 Detach . | . . . Swap 6 | . 2 4 Drop 2 | . 1 1 Fire 90 | 14 58 18 Melee . | . . . Ram . | . . . Kick . | . . . Crush 1 | . 1 . Escape Stasis . | . . . Rewire . | . . . Trap . | . . . Miscellaneous 1 | . . 1 Route ------- -11/Scrapyard -10/Materials (discovered 4 exits: [*Mat x2] / [*Min] / *Sub) -10/Subcaves History --------- Turn | Location | Event 3 | -11/Scrapyard | Discovered new exit (range 15) 149 | -11/Scrapyard | Entered Materials 311 | -10/Materials | Build established: Mutant 438 | -10/Materials | Discovered new exit (range 9) 551 | -10/Materials | Central database locked down 1076 | -10/Materials | Discovered new exit (range 13) 1334 | -10/Materials | Discovered new exit (range 16) 1495 | -10/Materials | Discovered new exit (range 6) 1509 | -10/Materials | Entered Subcaves 1682 | -10/Subcaves | Released subatomizers from SUBCON Basin 1918 | -10/Subcaves | Ambushed by Subdweller buried in earth 1970 | -10/Subcaves | Lost 3 parts (2n1u) 1989 | -10/Subcaves | Core integrity fell below 50% 2009 | -10/Subcaves | Core integrity fell below 20% 2086 | -10/Subcaves | Destroyed by S8-8UN(R) with Subdweller Machine Gun Last Messages --------------- 01932_ IZ-GBV(R) destroyed. 01939_ Lgt. Treads destroyed. 01939_ Lgt. Armor Plating destroyed. 01940_ Disposable Heat Sink melted. 01940_ S3-2KM(R) destroyed. 01946_ 0W-R0P(R) destroyed. 01952_ Acquired 86 matter. 01955_ Acquired Sub. Monowheel. 01961_ Subatomizers dissect the Sub. Laser. 01961_ Acquired Sub. Power Source. 01971_ Subatomizers dissect the Sub. Laser. 01972_ Acquired 49 matter. 01976_ Dropped Ion Engine. 01977_ Acquired Sub. Monowheel. 01993_ OT-Q6M(R) affixes Scrap Shield Fragment to Scrap Shield. 02007_ Subatomizers dissect the Sub. Laser. 02008_ OT-Q6M(R) destroyed. 02014_ Acquired 49 matter. 02018_ Subatomizers dissect the Sub. Laser. Map ----- +----------------------------------------------------+ | ?????????????????????????????????????????????????? | | ?????????????????????????????????????????????????? | | ?????????????????????????????????????????????????? | | ?????????????????????????????????????????????????? | | ?????????????????????????????????????????????????? | | ?????????????????????????????????????????????????? | | ?????????????????????????????????????????????????? | | ?????????????????????????????????????????????????? | | ?????????????????????###?????????????????????????? | | ?????????????????????# ######???????????????????? | | ?????????????????????# ## ##??????????????????? | | ??????????????????????# ####???????????????? | | ##????????????????????###!& #####???????????? | | #??????????????????######!%& "##??????????? | | #####??????#####???## # &&!! ""##"????????? | | ## #?###### ##### *"" [ ### """"""????????? | | #### ### ## "" #?# """""""????????? | | ## ######?## ### # "## ####" ###"?????????? | | ?#######???????######"## ### #?# #????????????? | | ????????????????????### " """ #?#""#????????????? | | ??????????????????????# ""#?# "#????????????? | | ??????????????????????# ### " #??????????? | | ??????????????????????# " " #??????????? | | ??????????????????????# """"" ??????????? | | ??????????????????????## R " ??????????? | | ???????????????????????##@ " ""#????????????? | | ????????????????????????# " " "#????????????? | | ???????????????????????? """ " #????????????? | | ??????????????????????? """" ?????????????? | | ??????????????????????## "###?##????????????? | | ???????????????????????#### # #????????????????? | | ??????????????????????????### ##????????????????? | | ????????????????????????????? #?????????????????? | | ????????????????????????????? #?????????????????? | | ????????????????????????????? ?????????????????? | | ????????????????????????????? ##????????????????? | | ?????????????????????????????? #?????????????????? | | ?????????????????????????????????????????????????? | | ?????????????????????????????????????????????????? | | ?????????????????????????????????????????????????? | | ?????????????????????????????????????????????????? | | ?????????????????????????????????????????????????? | | ?????????????????????????????????????????????????? | | ?????????????????????????????????????????????????? | | ?????????????????????????????????????????????????? | | ?????????????????????????????????????????????????? | | ?????????????????????????????????????????????????? | | ?????????????????????????????????????????????????? | | ?????????????????????????????????????????????????? | | ?????????????????????????????????????????????????? | +----------------------------------------------------+ Best States ------------- Heat Dissipation 25 Energy Generation 15 Energy Capacity 250 Matter Stores 300 Matter Capacity 300 Sight Range 16 Terrain Scan Density 10 Armor Coverage 150 Evasion (%) 40 Recoil Reduction 2 Item Schematics ----------------- None Robot Schematics ------------------ None Fabricated ------------ Nothing Repaired ---------- Nothing Alien Tech Used ----------------- None Achievements -------------- None Challenges ------------ None Game ------ Seed ScrapoidRapidAirjet Manual? 0 Play Time 00:13:42 Cumulative 50.3 hours Start 2025.06.30 @ 20:32:26 End 2025.06.30 @ 20:43:09 Sessions 1 Manual Loads 0 Difficulty Rogue Special Mode None Game No. 45 Rogue 45 Adventurer 0 Explorer 0 Win Type - Total 1 Types 1/0/0/0/0/0/0/0/0/0 Lore% 26 Gallery% 31 Achievement% 34 Wizard Run 0 Options --------- Layout 1 ASCII 0 Keyboard 1 Movement Arrows Keybinds 0 Fullscreen 1 Font 24/Smallcaps Map View 50x40 Zoom Use 0% Tactical HUD 1 Map Filters NONE Filters NONE Steam 1 RUN: 6670f95a-b3ba-4630-9ed2-27e0dfe574f1